Cogmind - Beta 13 @@@ ROGUE MODE // 2024.06.27 @ 22:59:38 Player: Ecrucean Result: Self-destructed Performance ------------- Evolutions (1) 500 Regions Visited (5) 1000 Robots Destroyed (52) 260 Value Destroyed (1191) 1191 Prototype IDs (6) 120 Alien Tech Used (0) 0 Bonus (0) 0 TOTAL SCORE: 3071 Bonus ------- None Cogmind --------- Core Integrity 215/400 Matter 300/300 Energy 125/125 System Corruption 0% Temperature Cool (0) Movement Walking (120) Location -9/Exiles Parts ------- > --- POWER (1) -------- Light Ion Engine > --- PROPULSION (3) --- Aluminum Leg Aluminum Leg Aluminum Leg > --- UTILITY (3) ------ Large Storage Unit Hacking Suite Hacking Suite > --- WEAPON (2) ------- Light Assault Rifle Improved Light Cannon > --- INVENTORY (15) --- Aluminum Leg Aluminum Leg Improved Aluminum Leg Medium Storage Unit Small Matter Pod (50) Utility Shielding Light Armor Plating Splice Drone Bay Assault Rifle Assault Rifle Light Assault Rifle Light Assault Rifle Improved Light Cannon Rocket Launcher Mini Grenade Launcher Peak State ------------ > --- POWER ------------ Light Ion Engine > --- PROPULSION ------- Aluminum Leg Aluminum Leg Aluminum Leg > --- UTILITY ---------- Large Storage Unit Hacking Suite Hacking Suite > --- WEAPON ----------- Light Assault Rifle Improved Light Cannon > --- INVENTORY -------- Aluminum Leg Aluminum Leg Aluminum Leg Aluminum Leg Medium Storage Unit High-powered Tractor Beam Assault Rifle Light Assault Rifle Light Assault Rifle Light Assault Rifle Improved Light Cannon Improved Light Cannon Grenade Launcher Mini Grenade Launcher Mace [Rating: 16] Favorites ----------- Power Light Ion Engine Engine Light Ion Engine Propulsion Aluminum Leg Treads Light Treads Leg Aluminum Leg Wheel Compact Wheel Utility Hacking Suite Storage Large Storage Unit Hackware Hacking Suite Weapon Light Assault Rifle Energy Gun Medium Laser Ballistic Gun Light Assault Rifle Ballistic Cannon Improved Light Cannon Launcher Grenade Launcher Slashing Weapon Mining Claw Build | -11 -10 -10 -9 -9 -9 ------- Run | Yrd Mat Min Mat Min Exi Slots Evolved 2 | . . . 2 . . Power . | . . . . . . Propulsion 1 | . . . 1 . . Utility 1 | . . . 1 . . Weapon . | . . . . . . Parts Attached 32 | 6 9 . 14 3 . Power 4 | 1 . . 3 . . Engine 4 | 1 . . 3 . . Core . | . . . . . . Reactor . | . . . . . . Propulsion 12 | 2 3 . 6 1 . Treads 4 | 1 2 . 1 . . Leg 6 | . . . 5 1 . Wheel 2 | 1 1 . . . . Hover . | . . . . . . Flight . | . . . . . . Utility 4 | 1 2 . 1 . . Device . | . . . . . . Storage 2 | 1 1 . . . . Processor . | . . . . . . Hackware 2 | . 1 . 1 . . Protection . | . . . . . . Artifact . | . . . . . . Weapon 12 | 2 4 . 4 2 . Energy Gun 1 | 1 . . . . . Energy Cannon . | . . . . . . Ballistic Gun 6 | 1 2 . 2 1 . Ballistic Cannon 3 | . . . 2 1 . Launcher 1 | . 1 . . . . Special Weapon . | . . . . . . Impact Weapon . | . . . . . . Slashing Weapon 1 | . 1 . . . . Piercing Weapon . | . . . . . . Special Melee Weapon . | . . . . . . Unidentified Prototypes . | . . . . . . Parts Lost 3 | . . . 3 . . Power . | . . . . . . Propulsion 2 | . . . 2 . . Utility . | . . . . . . Weapon 1 | . . . 1 . . Highest Loss Streak 2 | . . . 2 . . To Critical Strikes . | . . . . . . Average Slot Usage (%) 96 | . 92 100 94 100 100 Engine 12 | . 14 14 11 11 11 Treads 8 | . 14 14 7 . . Leg 15 | . . . 21 33 33 Wheel 7 | . 14 14 3 . . Storage 12 | . 14 14 11 11 11 Hackware 15 | . 6 14 16 22 22 Ballistic Gun 18 | . 25 28 13 11 11 Ballistic Cannon 5 | . . . 8 11 11 Naked Turns . | . . . . . . Heaviest Build 34 | 13 28 28 34 28 28 Greatest Support 40 | 20 16 16 40 30 30 Greatest Overweight (x) 2 | 2 1 1 2 . . Average Overweight (x) . | . . 1 . . . Largest Inventory Capacity 15 | 8 15 15 15 15 15 Average Capacity 13 | 7 9 15 15 15 15 Most Carried 15 | 6 14 15 15 15 15 Average Carried 13 | 3 8 14 14 14 15 Final Capacity 15 | 8 15 15 15 15 15 Final Carried 15 | 6 14 15 15 15 15 Class Distribution -------------------- 57% | Mutant 28% | Scavenger-Mutant 13% | Hacker-Mutant Dominant Class ---------------- Mutant | -10/Materials Mutant | -10/Mines Mutant | -9/Materials Scavenger-Mutant | -9/Mines Scavenger-Mutant | -9/Exiles Resources | -11 -10 -10 -9 -9 -9 ----------- Run | Yrd Mat Min Mat Min Exi Matter Collected 1179 | 260 260 . 544 115 . Remotely . | . . . . . . Salvage Created 1590 | 67 367 . 1067 89 . Parts 108 | 2 37 . 63 6 . Haulers Intercepted 1 | . . . 1 . . Recyclers Shooed 3 | . . . 3 . . Parts Field Recycled . | . . . . . . Retrieved Matter . | . . . . . . Parts Self-Destructed . | . . . . . . Prevented . | . . . . . . Kills | -11 -10 -10 -9 -9 -9 ------- Run | Yrd Mat Min Mat Min Exi Combat Hostiles Destroyed 38 | . 11 . 24 3 . Guns 23 | . 11 . 10 2 . Cannons 15 | . . . 14 1 . Classes Destroyed 8 | 1 4 . 3 . . Worker 1 | . . . 1 . . Hauler 1 | . . . 1 . . Recycler 4 | 1 . . 2 1 . Operator 2 | . 1 . 1 . . Watcher 6 | . 3 . 3 . . Swarmer 16 | . 6 . 7 3 . Grunt 16 | . 5 . 11 . . Sentry 6 | . . . 6 . . Best Kill Streak 6 | 1 3 . 6 2 . Combat Bots Only 5 | . 3 . 5 2 . Max Kills in Single Turn 2 | 1 1 . 2 1 . Gunslinging . | . . . . . . Exploded . | . . . . . . Melee . | . . . . . . Uniques/NPCs Destroyed . | . . . . . . Combat | -11 -10 -10 -9 -9 -9 -------- Run | Yrd Mat Min Mat Min Exi Hostile Shots Fired 193 | . 40 . 139 14 . Missed 67 | . 18 . 48 1 . Damage Taken 1393 | . 226 . 1065 102 . Core 221 | . 36 . 153 32 . Absorbed by Shields . | . . . . . . Regen/Repaired (Parts) 87 | . . . 87 . . Core Remaining (%) 92 | 100 . 85 . . . Volleys Fired 136 | 4 41 . 84 7 . Largest 2 | 1 2 . 2 2 . Hottest 62 | 50 40 . 62 59 . Shots Fired 267 | 4 81 . 168 14 . Gun 208 | 4 80 . 117 7 . Cannon 58 | . . . 51 7 . Launcher 1 | . 1 . . . . Special . | . . . . . . Kinetic 262 | . 80 . 168 14 . Thermal 4 | 4 . . . . . Explosive 1 | . 1 . . . . Electromagnetic . | . . . . . . Robot Hit Streak 22 | 4 9 . 22 3 . Robot Miss Streak 6 | . 3 . 6 3 . Penetration Max . | . . . . . . Secondary Targets . | . . . . . . Shots Hit Robots 179 | 4 53 . 116 6 . Core Hits 82 | 2 26 . 49 5 . Critical Kills 1 | . . . 1 . . Critical Parts Destroyed . | . . . . . . Critical Strikes 5 | 2 . . 3 . . Burn 2 | 2 . . . . . Destroy 1 | . . . 1 . . Blast 2 | . . . 2 . . Melee Attacks 4 | . 4 . . . . Impact . | . . . . . . Slashing 4 | . 4 . . . . Piercing . | . . . . . . Sneak Attacks . | . . . . . . Combat Hostiles . | . . . . . . Follow-up Attacks . | . . . . . . Damage Inflicted 2433 | 49 585 . 1690 109 . Guns 1581 | 49 563 . 945 24 . Cannons 830 | . . . 745 85 . Explosions 22 | . 22 . . . . Melee . | . . . . . . Ramming . | . . . . . . Kinetic 2362 | . 563 . 1690 109 . Thermal 49 | 49 . . . . . Explosive 22 | . 22 . . . . Electromagnetic . | . . . . . . Impact . | . . . . . . Slashing . | . . . . . . Piercing . | . . . . . . Highest Corruption . | . . . . . . Average Corruption . | . . . . . . Corruption Purged . | . . . . . . Corruption Blocked . | . . . . . . Overload Shots . | . . . . . . Overflow Damage . | . . . . . . Projectiles . | . . . . . . Explosions . | . . . . . . Melee . | . . . . . . Knockbacks 8 | . . . 6 2 . Impact . | . . . . . . Kinetic 8 | . . . 6 2 . Secondary . | . . . . . . Self-Inflicted Damage . | . . . . . . Shots . | . . . . . . Rammed . | . . . . . . Targets Rammed . | . . . . . . Kicked . | . . . . . . Crushed . | . . . . . . Highest Temperature 46 | 40 9 . 46 24 . Average Temperature 12 | 22 7 . 12 10 . Received Heat Transfer 519 | . 90 . 429 . . Siege Activations . | . . . . . . Robots Corrupted . | . . . . . . Combat Hostiles . | . . . . . . Parts Fried . | . . . . . . Impact Corruptions . | . . . . . . Robots Melted . | . . . . . . Combat Hostiles . | . . . . . . Parts Melted 1 | 1 . . . . . Heat Transferred 296 | 296 . . . . . Parts Sabotaged . | . . . . . . Parts Stolen . | . . . . . . Parts Stripped . | . . . . . . Power Chain Reactions . | . . . . . . Alert | -11 -10 -10 -9 -9 -9 ------- Run | Yrd Mat Min Mat Min Exi Peak Influence 300 | 5 300 61 287 146 . Initial 61 | . 3 61 . 58 . Average 92 | 1 125 34 133 44 . Maximum Alert Level 1 | . 1 . 1 . . Low Security (%) 87 | 100 75 100 81 100 . Level 1 12 | . 24 . 18 . . Level 2 . | . . . . . . Level 3 . | . . . . . . Level 4 . | . . . . . . Level 5 . | . . . . . . High Security . | . . . . . . Max Security . | . . . . . . Squads Dispatched 5 | . 2 . 3 . . Investigation . | . . . . . . Extermination . | . . . . . . Reinforcement 5 | . 2 . 3 . . Assault . | . . . . . . Garrison . | . . . . . . Intercept . | . . . . . . Searches Triggered . | . . . . . . Construction Impeded . | . . . . . . Haulers Reinforced . | . . . . . . Active Scanning Responses . | . . . . . . Cargo Convoy Interrupts . | . . . . . . Stealth | -11 -10 -10 -9 -9 -9 --------- Run | Yrd Mat Min Mat Min Exi Distress Signals 5 | . 3 . 2 . . Communications Jammed . | . . . . . . Distress Signals . | . . . . . . Times Spotted 63 | . 23 . 36 4 . Peak Tracking Total 6 | . 6 . 5 3 . Tactical Retreats 5 | . 3 . 1 1 . Traps | -11 -10 -10 -9 -9 -9 ------- Run | Yrd Mat Min Mat Min Exi Traps Triggered . | . . . . . . Indirectly . | . . . . . . Trap Hack Attempts . | . . . . . . Triggered . | . . . . . . Disarmed . | . . . . . . Reprogrammed . | . . . . . . Reused . | . . . . . . Traps Extracted . | . . . . . . Installed . | . . . . . . Triggered . | . . . . . . Machines | -11 -10 -10 -9 -9 -9 ---------- Run | Yrd Mat Min Mat Min Exi Machines Disabled 1 | . . . 1 . . Max in Single Turn . | . . . . . . Machines Repaired . | . . . . . . Machines Dismantled . | . . . . . . Machines Sabotaged . | . . . . . . Overloaded Fab Kills . | . . . . . . Hacking | -11 -10 -10 -9 -9 -9 --------- Run | Yrd Mat Min Mat Min Exi Machines Accessed 16 | . 7 . 8 1 . Terminals 13 | . 6 . 7 . . Fabricators . | . . . . . . Repair Stations 1 | . . . 1 . . Recycling Units 1 | . 1 . . . . Scanalyzers . | . . . . . . Garrison Access . | . . . . . . Total Hacks 48 | . 21 . 26 1 . Successful 29 | . 10 . 18 1 . Failed 19 | . 11 . 8 . . Catastrophic 3 | . 2 . 1 . . Database Lockouts . | . . . . . . Manual 30 | . 15 . 15 . . Terminals 43 | . 19 . 24 . . Fabricators . | . . . . . . Repair Stations 2 | . . . 2 . . Recycling Units 2 | . 2 . . . . Scanalyzers . | . . . . . . Garrison Access . | . . . . . . Terminal Hacks 22 | . 8 . 13 1 . Part Schematic 2 | . 1 . 1 . . Robot Analysis 4 | . 3 . 1 . . Prototype ID Bank 3 | . 1 . 2 . . Open Door 1 | . . . . 1 . Branch Access Points 1 | . . . 1 . . Emergency Access Points 1 | . . . 1 . . Terminal Index 1 | . 1 . . . . Unreport Threat 2 | . . . 2 . . Locate Traps 3 | . 1 . 2 . . Hauler Manifests 2 | . 1 . 1 . . Zone Layout 2 | . . . 2 . . Fabricator Hacks . | . . . . . . Repair Station Hacks 2 | . . . 2 . . Scan Component 1 | . . . 1 . . Repair 1 | . . . 1 . . Recycling Unit Hacks . | . . . . . . Scanalyzer . | . . . . . . Garrison Access Hacks . | . . . . . . Unauthorized Hacks 5 | . 2 . 3 . . Terminals 3 | . . . 3 . . Track 1 | . . . 1 . . Botnet 2 | . . . 2 . . Fabricators . | . . . . . . Repair Stations . | . . . . . . Recycling Units 2 | . 2 . . . . Reject 1 | . 1 . . . . Mask 1 | . 1 . . . . Scanalyzers . | . . . . . . Garrison Access . | . . . . . . Data Cores Recovered . | . . . . . . Used . | . . . . . . Hacking Detections 13 | . 6 . 7 . . Full Trace Events 1 | . 1 . . . . Feedback Events . | . . . . . . Feedback Blocked . | . . . . . . Robot Schematics Acquired . | . . . . . . Robots Built . | . . . . . . Authchips . | . . . . . . Time . | . . . . . . Total Robot Build Rating . | . . . . . . Part Schematics Acquired 2 | . 1 . 1 . . Parts Built . | . . . . . . Authchips . | . . . . . . Time . | . . . . . . Total Part Build Rating . | . . . . . . Parts Repaired 1 | . . . 1 . . Time 32 | . . . 32 . . Parts Recycled . | . . . . . . Recycled Matter . | . . . . . . Retrieved Matter . | . . . . . . Retrieved Components . | . . . . . . Parts Scanalyzed . | . . . . . . Part Schematics Acquired . | . . . . . . Parts Damaged . | . . . . . . Bothacking | -11 -10 -10 -9 -9 -9 ------------ Run | Yrd Mat Min Mat Min Exi Used RIF Installer . | . . . . . . Robots Hacked . | . . . . . . Non-combat . | . . . . . . Combat . | . . . . . . Robot Hacks Applied . | . . . . . . Relay Couplers Released . | . . . . . . Fabnet Peak Effective % . | . . . . . . Robots Rewired . | . . . . . . Allies Hacked . | . . . . . . Hacks Repelled . | . . . . . . Allies | -11 -10 -10 -9 -9 -9 -------- Run | Yrd Mat Min Mat Min Exi Total Allies 4 | . . 4 . . . Largest Group 3 | . . 3 3 . . Highest-Rated Group 40 | . . 40 40 . . Highest-Rated Ally 31 | . . 31 16 . . Total Orders . | . . . . . . Ally Attacks 10 | . . . 10 . . Total Damage 97 | . . . 97 . . Kills . | . . . . . . Allies Corrupted . | . . . . . . Allies Melted . | . . . . . . Intel | -11 -10 -10 -9 -9 -9 ------- Run | Yrd Mat Min Mat Min Exi Robot Analysis Total 4 | . 3 . 1 . . Derelict Logs Recovered 3 | . . 2 . 1 . Drone Launches . | . . . . . . Drone Recoveries . | . . . . . . Exploration | -11 -10 -10 -9 -9 -9 ------------- Run | Yrd Mat Min Mat Min Exi Turns Passed 4128 | 87 945 711 1387 818 180 Spaces Moved 2913 | 62 693 586 807 615 150 Core 19 | 19 . . . . . Treads 3 | 2 . . 1 . . Legs 1310 | . . . 545 615 150 Wheels 1581 | 41 693 586 261 . . Hover . | . . . . . . Flight . | . . . . . . Fastest Speed 50 | 50 100 115 115 120 120 Average Speed 114 | 101 103 115 119 120 120 Slowest Speed 190 | 160 115 115 190 120 120 Overloaded Moves . | . . . . . . Propulsion Burnouts . | . . . . . . Robots Hopped . | . . . . . . Cave-ins Triggered . | . . . . . . Exploration Rate (%) 68 | 5 92 98 71 100 47 Regions Visited 5 Branch Regions 3 Pre-discovered Areas 1 | . . 1 . . . Known Exits Taken 1 | . . . 1 . . Unknown Exits Taken 4 | 1 1 1 . 1 . Scrap Searched 4 | . . 1 . 3 . Spaces Dug 9 | . 9 . . . . Terrain Destroyed 14 | . 9 . 2 3 . Melee 4 | . 4 . . . . Projectile 5 | . . . 2 3 . AOE 5 | . 5 . . . . Terrain Rammed . | . . . . . . Walls Destroyed . | . . . . . . Machines Disabled . | . . . . . . Actions | -11 -10 -10 -9 -9 -9 --------- Run | Yrd Mat Min Mat Min Exi Total 3462 | 79 845 623 1082 683 150 Wait 308 | 2 72 37 146 51 . Move 2908 | 61 692 585 806 614 150 Hop . | . . . . . . Pick Up 44 | 6 17 1 16 4 . Fast Attach 7 | 6 . . 1 . . Attach 7 | . 1 . 6 . . Detach 1 | . . . 1 . . Swap 18 | . 8 . 7 3 . Drop 29 | . 10 . 15 4 . Fire 136 | 4 41 . 84 7 . Melee 4 | . 4 . . . . Ram . | . . . . . . Kick . | . . . . . . Crush . | . . . . . . Escape Stasis . | . . . . . . Rewire . | . . . . . . Trap . | . . . . . . Miscellaneous . | . . . . . . Route ------- -11/Scrapyard -10/Materials (discovered 5 exits: *Mat x3 / [*Min x2]) -10/Mines (discovered 2 exits: *Mat x2) -9/Materials (discovered 4 exits: *Mat x3 / *Min) -9/Mines (discovered 4 exits: *Mat x2 / [*Exi] / [*Zio]) -9/Exiles (discovered 1 exit: [*Min]) History --------- Turn | Location | Event 3 | -11/Scrapyard | Discovered new exit (range 15) 88 | -11/Scrapyard | Entered Materials 300 | -10/Materials | Build established: Mutant 304 | -10/Materials | Discovered new exit (range 8) 358 | -10/Materials | Discovered new exit (range 15) 558 | -10/Materials | Discovered new exit (range 16) 698 | -10/Materials | Discovered new exit (range 16) 847 | -10/Materials | Discovered new exit (range 16) 1033 | -10/Materials | Entered Mines 1036 | -10/Mines | Received a Mining Laser from a helpful Derelict 1048 | -10/Mines | Met a Derelict bent on vengeance 1066 | -10/Mines | Learned 4 Materials zone layouts 1275 | -10/Mines | Discovered new exit (range 5) 1324 | -10/Mines | Learned location of Zion (-7) 1369 | -10/Mines | Discovered new exit (range 13) 1634 | -10/Mines | Assisted by bots powering up and referring to "LRC-V3" 1744 | -10/Mines | Entered Materials 1744 | -9/Materials | Accompanied by 3 allies 1744 | -9/Materials | Evolved 2 slots: Propulsion x1, Utility x1 1745 | -9/Materials | Identified exit to Materials 1810 | -9/Materials | Lost 3 allies 2487 | -9/Materials | Discovered exit to Materials (range 6) 2673 | -9/Materials | Repaired Imp. Light Cannon 2700 | -9/Materials | Build established: Hacker-Mutant 2843 | -9/Materials | Identified exit to Mines 3131 | -9/Materials | Entered Mines 3168 | -9/Mines | Learned location of 1 exit from Materials 3247 | -9/Mines | Discovered exit to Materials (range 7) 3251 | -9/Mines | Received a Rocket Launcher from a helpful Derelict 3273 | -9/Mines | Build established: Scavenger-Mutant 3494 | -9/Mines | Deemed a non-threat by the Exiles lab entrance 3495 | -9/Mines | Discovered new exit (range 5) 3612 | -9/Mines | A Derelict revealed a hidden shortcut to a safe place 3662 | -9/Mines | Found a damaged Exp. Sensor Array with a note attached 3694 | -9/Mines | Discovered exit to Materials (range 14) 3713 | -9/Mines | Found the Drone Emporium 3728 | -9/Mines | Found Prototype Device 3949 | -9/Mines | Entered Exiles 3949 | -9/Exiles | Found Exiles lab destroyed 3975 | -9/Exiles | Discovered new exit (range 15) 4129 | -9/Exiles | Self-destructed Last Messages --------------- 03715_ 8R-BTU(g): "I'm a fan of the free market. Free drones for all! No strings attached!" 03726_ Dropped Lgt. Assault Rifle. 03726_ Dropped Imp. Light Cannon. 03728_ Acquired Prototype Device. 03730_ Searching scrap... 03730_ Found Sml. Matter Pod. 03730_ Found Assault Rifle. 03730_ Found 12 Matter. 03731_ Acquired 12 matter. 03734_ Acquired Assault Rifle. 03741_ Dropped Aluminum Leg. 03742_ Acquired Sml. Matter Pod. 03859_ Acquired 8 matter. 03861_ Acquired 9 matter. 03885_ Acquired 4 matter. 03888_ Acquired 47 matter. LOCATION=UNKNOWN GOAL=ESCAPE 03975_ EXIT=FOUND Map ----- +----------------------------------------------------+ | ?????????????????????????????????????????????????? | | ?????????????????????????????????????????????????? | | ?????????????????????????????????????????????????? | | ?????????????????????????????????????????????????? | | ?????????????????????????????????????????????????? | | ?????????????????????????????????????????????????? | | ?????????????????????????????????????????????????? | | ?????????????????????????????????????????????????? | | ?????????????????????????????????????????????????? | | ?????????????????????????????????????????????????? | | ?????????????????????????????????????????????????? | | ?????????????????????????????????????????????????? | | ?????????????????????????????????????????????????? | | ?????????????????????????????????????????????????? | | ?????????????????????????????????????????????????? | | ?????????????????????########????????????????????? | | ?????????????????????# """#????????????????????? | | ?????????????????????#" "#????????????????????? | | ?????????????????????#" #????????????????????? | | ?????????????????????#"" #????????????????????? | | ?????????????????????#" "#????????????????????? | | ?????????????????????# "#????????????????????? | | ?????????????????????#"" ""#????????????????????? | | ?????????????????????### ###????????????????????? | | ???????????????#?????### ###??#####""???????????? | | ?????????? """#####X# @#"###"" """ ??????????? | | ?????????? / """""" " ???##??? | | ?????????? "" " ### | | ?????????? " | | ??????????# | | ???????????## | | ????????????## | | ?????????????## h | | ??????????????##" h | | ???????????????#""" """""" | | ??????????????##" ####????? | | ??????????????# ""##????????#""" | | ??????????????#" """##??????????#" | | ??????????????""" """##???????????#""" | | ??????????????""" ""#???????????##"" | | ?????????????#"" ########??####"" | | ?????????????#" ## ####"" | | ?????????????#"" """" | | ??????????????#"" | | ??????????????#""" | | ???????????????# | | ???????????????#" " " | | ???????????????#"""" ""## ##"" " | | ???????????????#"" ""#### ######""" | | ????????????????" """"##??# #????###" | +----------------------------------------------------+ Best States ------------- Heat Dissipation 28 Energy Generation 12 Energy Capacity 265 Matter Stores 300 Matter Capacity 300 Sight Range 16 Terrain Scan Density 10 Evasion (%) 55 Recoil Reduction 2 Offensive Hacking 20 Item Schematics ----------------- Propulsion Shielding | -10/Materials | Hacked Utility Shielding | -9/Materials | Hacked Robot Schematics ------------------ None Fabricated ------------ Nothing Alien Tech Used ----------------- None Achievements -------------- Everything Is Under Control Loot Pinata Part-time Mechanic Storm Trooper Challenges ------------ None Game ------ Seed MiningProjectionChronowheel Manual? 0 Play Time 00:26:53 Cumulative 1.3 hours Start 2024.06.27 @ 22:33:04 End 2024.06.27 @ 22:59:38 Sessions 1 Manual Loads 0 Difficulty Rogue Special Mode None Game No. 5 Rogue 5 Adventurer 0 Explorer 0 Win Type - Total 0 Types 0/0/0/0/0/0/0/0/0 Lore% 10 Gallery% 4 Achievement% 6 Wizard Run 0 Options --------- Layout 1 ASCII 1 Keyboard 1 Movement Numpad Keybinds 0 Fullscreen 1 Font 24/Smallcaps Map View 50x35 Zoom Use 0% Tactical HUD 1 Map Filters NONE Filters NONE Steam 1 RUN: 98acde15-88ff-45cd-b51b-122316a7b68a